fUST/lending_fUST_20250713
["ID","MTS","AMOUNT","RATE_DAILY","PERIOD"]
[371525726,1752337878419,-151.0,0.00020547,2]
[371525727,1752337878429,-151.0,0.00020547,2]
[371525728,1752337878440,-504.26,0.00020547,2]
[371525729,1752337878449,-460.0,0.00020547,2]
[371525730,1752337878459,-460.0,0.00020547,2]
[371525731,1752337878470,-151.0,0.00020547,2]
[371525732,1752337878480,-588.15,0.00020547,2]
[371525733,1752337878490,-460.0,0.00020547,2]
[371525734,1752337878500,-992.64,0.00020547,2]
[371525735,1752337878509,-460.0,0.00020547,2]
[371525736,1752337878519,-235.001874,0.00020547,2]
[371525737,1752337878529,-460.0,0.00020547,2]
[371525738,1752337878539,-235.001874,0.00020547,2]
[371525739,1752337878548,-1839.91,0.00020547,2]
[371525740,1752337878559,-460.0,0.00020547,2]
[371525741,1752337878569,-927.9,0.00020547,2]
[371525742,1752337878578,-526.46,0.00020547,2]
[371525743,1752337878589,-1650.17,0.00020547,2]
[371525744,1752337878599,-460.0,0.00020547,2]
[371525745,1752337878609,-1069.15,0.00020547,2]
[371525746,1752337878618,-460.0,0.00020547,2]
[371525747,1752337878629,-578.23,0.00020547,2]
[371525748,1752337878639,-3354.98,0.00020547,2]
[371525749,1752337878649,-460.0,0.00020547,2]
[371525750,1752337878658,-818.44,0.00020547,2]
[371525751,1752337878668,-998.44,0.00020547,2]
[371525752,1752337878677,-2099.31,0.00020547,2]
[371525753,1752337878687,-4494.11,0.00020547,2]
[371525754,1752337878697,-460.0,0.00020547,2]
[371525755,1752337878706,-1003.4,0.00020547,2]
[371525756,1752337878715,-485.45,0.00020547,2]
[371525757,1752337878725,-515.64,0.00020547,2]
[371525758,1752337878736,-1931.86,0.00020547,2]
[371525759,1752337878745,-460.0,0.00020547,2]
[371525760,1752337878755,-460.0,0.00020547,2]
[371525761,1752337878765,-3383.5,0.00020547,2]
[371525762,1752337878775,-470.33,0.00020547,2]
[371525763,1752337878785,-460.0,0.00020547,2]
[371525764,1752337878794,-1827.3,0.00020547,2]
[371525765,1752337878805,-804.37,0.00020547,2]
[371525766,1752337878815,-2119.51,0.00020547,2]
[371525767,1752337878825,-460.0,0.00020547,2]
[371525768,1752337878833,-690.3,0.00020547,2]
[371525769,1752337878843,-460.0,0.00020547,2]
[371525770,1752337878852,-460.0,0.00020547,2]
[371525771,1752337878862,-460.0,0.00020547,2]
[371525772,1752337878871,-717.39,0.00020547,2]
[371525773,1752337878881,-834.1,0.00020547,2]
[371525774,1752337878892,-677.77,0.00020547,2]
[371525775,1752337878903,-151.0,0.00020547,2]
[371525776,1752337878913,-460.0,0.00020547,2]
[371525777,1752337878925,-1548.29,0.00020547,2]
[371525778,1752337878937,-638.57,0.00020547,2]
[371525779,1752337878947,-520.33762507,0.00020547,2]
[371525780,1752337878958,-1037.74,0.00020547,2]
[371525781,1752337878967,-502.37,0.00020547,2]
[371525782,1752337878978,-633.77,0.00020547,2]
[371525783,1752337878988,-504.46,0.00020547,2]
[371525784,1752337878998,-1078.9,0.00020547,2]
[371525785,1752337879008,-535.14,0.00020547,2]
[371525786,1752337879017,-5267.62,0.00020547,2]
[371525787,1752337879027,-460.0,0.00020547,2]
[371525788,1752337879037,-460.0,0.00020547,2]
[371525789,1752337879046,-151.0,0.00020547,2]
[371525790,1752337879056,-1776.53,0.00020547,2]
[371525791,1752337879065,-305.267491,0.00020547,2]
[371525792,1752337879075,-460.0,0.00020547,2]
[371525793,1752337879085,-305.267491,0.00020547,2]
[371525794,1752337879094,-476.19,0.00020547,2]
[371525795,1752337879104,-1202.71,0.00020547,2]
[371525796,1752337879113,-3056.48899399,0.00020547,2]
[371525797,1752337879792,-466.72916978,0.00016438,2]
[371525798,1752337879802,-439.02223243,0.00016438,2]
[371525799,1752337879814,-20.97776757,0.00016438,2]
[371525800,1752337879824,-460.0,0.00016438,2]
[371525801,1752337879833,-460.0,0.00016438,2]
[371525802,1752337879843,-240.02098606,0.00016438,2]
[371525803,1752337879853,-460.0,0.00016712,2]
[371525804,1752337879862,-460.0,0.00016712,2]
[371525805,1752337879872,-40.41220927,0.0001726,2]
[371525806,1752337880299,-460.0,0.00016438,2]
[371525807,1752337880319,-185.29,0.00016438,2]
[371525808,1752337880338,-274.71,0.00016438,2]
[371525809,1752337880353,-587.85,0.00016438,2]
[371525810,1752337880367,-460.0,0.00016438,2]
[371525811,1752337880381,-460.0,0.00016438,2]
[371525812,1752337880395,-587.85,0.00016712,2]
[371525813,1752337880409,-460.0,0.00016712,2]
[371525814,1752337880424,-460.0,0.00016986,2]
[371525815,1752337880439,-587.85,0.00016986,2]
[371525816,1752337880454,-419.58779073,0.0001726,2]
[371525817,1752337880469,-460.0,0.0001726,2]
[371525818,1752337880478,-587.85,0.0001726,2]
[371525819,1752337880487,-397.650036,0.00017388,2]
[371525820,1752337880497,-460.0,0.00017534,2]
[371525821,1752337880507,-460.0,0.00017534,2]
[371525822,1752337880517,-587.85,0.00017534,2]
[371525823,1752337880528,-460.0,0.00017808,2]
[371525824,1752337880538,-587.85,0.00017808,2]
[371525825,1752337880548,-460.0,0.00018082,2]
[371525826,1752337880558,-397.650036,0.00018082,2]
[371525827,1752337880568,-587.85,0.00018082,2]
[371525828,1752337880578,-460.0,0.00018356,2]
[371525829,1752337880588,-460.0,0.0001863,2]
[371525830,1752337880598,-397.650036,0.0001863,2]
[371525831,1752337880608,-460.0,0.00018904,2]
[371525832,1752337880618,-460.0,0.00019178,2]
[371525833,1752337880628,-397.650036,0.00019178,2]
[371525834,1752337880638,-460.0,0.00019452,2]
[371525835,1752337880648,-216.94396209,0.00019726,2]
[371525836,1752337880658,-397.650036,0.00019831,2]
[371525837,1752337880668,-151.0,0.00019899,2]
[371525838,1752337880678,-151.0,0.00019899,2]
[371525839,1752337880687,-151.0,0.00019899,2]
[371525840,1752337880697,-151.0,0.00019899,2]
[371525841,1752337880707,-78.01100601,0.00020547,2]
[371525842,1752337880718,-559.61,0.00020547,2]
[371525843,1752337880728,-460.0,0.00020547,2]
[371525844,1752337880739,-483.57,0.00020547,2]
[371525845,1752337880751,-397.650036,0.00020547,2]
[371525846,1752337880762,-2654.34677328,0.00020555,3]
[371525847,1752337880773,-455.23741542,0.00020601,4]
[371525848,1752337880783,-177.9046599,0.00020658,2]
[371525849,1752337880793,-159.6218677,0.00020658,2]
[371525850,1752337880803,-576.333126,0.00020658,2]
[371525851,1752337880812,-154.6481975,0.00020658,2]
[371525852,1752337880823,-153.0,0.00020658,2]
[371525853,1752337880832,-625.32,0.00020788,2]
[371525854,1752337880842,-2654.34677328,0.00020797,4]
[371525855,1752337880852,-773.0,0.000208,2]
[371525856,1752337880862,-2648.42648793,0.00020811,2]
[371525857,1752337880872,-500.0,0.00020814,2]
[371525858,1752337880883,-151.0,0.00020821,2]
[371525859,1752337880893,-151.0,0.00020821,2]
[371525860,1752337880905,-460.0,0.00020821,2]
[371525861,1752337881241,-460.0,0.00020821,2]
[371525862,1752337881257,-535.97,0.00020821,2]
[371525863,1752337881268,-460.0,0.00020821,2]
[371525864,1752337881280,-544.05,0.00020821,2]
[371525865,1752337881290,-460.0,0.00020821,2]
[371525866,1752337881300,-754.1,0.00020821,2]
[371525867,1752337881309,-460.0,0.00020821,2]
[371525868,1752337881320,-460.0,0.00020821,2]
[371525869,1752337881334,-874.82,0.00020821,2]
[371525870,1752337881343,-407.23997002,0.00020821,2]
[371525871,1752337881354,-460.0,0.00020821,2]
[371525872,1752337881363,-934.28,0.00020821,2]
[371525873,1752337881373,-460.0,0.00020821,2]
[371525874,1752337881382,-504.26,0.00020821,2]
[371525875,1752337881392,-460.0,0.00020821,2]
[371525876,1752337881401,-460.0,0.00020821,2]
[371525877,1752337881411,-992.64,0.00020821,2]
[371525878,1752337881421,-460.0,0.00020821,2]
[371525879,1752337881430,-460.0,0.00020821,2]
[371525880,1752337881440,-1839.91,0.00020821,2]
[371525881,1752337881449,-463.67794482,0.00020821,2]
[371525882,1752337881459,-927.9,0.00020821,2]
[371525883,1752337881468,-526.46,0.00020821,2]
[371525884,1752337881478,-1650.17,0.00020821,2]
[371525885,1752337881488,-460.0,0.00020821,2]
[371525886,1752337881498,-1069.15,0.00020821,2]
[371525887,1752337881508,-460.0,0.00020821,2]
[371525888,1752337881517,-578.23,0.00020821,2]
[371525889,1752337881526,-3354.98,0.00020821,2]
[371525890,1752337881535,-460.0,0.00020821,2]
[371525891,1752337881545,-998.44,0.00020821,2]
[371525892,1752337881555,-2099.31,0.00020821,2]
[371525893,1752337881564,-4494.11,0.00020821,2]
[371525894,1752337881574,-460.0,0.00020821,2]
[371525895,1752337881583,-1003.4,0.00020821,2]
[371525896,1752337881593,-485.45,0.00020821,2]
[371525897,1752337881602,-515.64,0.00020821,2]
[371525898,1752337881613,-460.0,0.00020821,2]
[371525899,1752337881622,-460.0,0.00020821,2]
[371525900,1752337881631,-3383.5,0.00020821,2]
[371525901,1752337881641,-470.33,0.00020821,2]
[371525902,1752337881651,-397.63,0.00020821,2]
[371525903,1752337881660,-1827.3,0.00020821,2]
[371525904,1752337881670,-804.37,0.00020821,2]
[371525905,1752337881680,-2119.51,0.00020821,2]
[371525906,1752337881691,-460.0,0.00020821,2]
[371525907,1752337881700,-690.3,0.00020821,2]
[371525908,1752337881710,-460.0,0.00020821,2]
[371525909,1752337881720,-460.0,0.00020821,2]
[371525910,1752337881729,-460.0,0.00020821,2]
[371525911,1752337881738,-151.0,0.00020821,2]
[371525912,1752337881747,-717.39,0.00020821,2]
[371525913,1752337881757,-834.1,0.00020821,2]
[371525914,1752337881767,-677.77,0.00020821,2]
[371525915,1752337881776,-460.0,0.00020821,2]
[371525916,1752337881786,-57.14326124,0.00020821,2]
[371525917,1752337881991,-460.0,0.00016712,2]
[371525918,1752337882001,-151.0,0.0001726,2]
[371525919,1752337882011,-151.0,0.0001726,2]
[371525920,1752337882021,-397.650036,0.00017388,2]
[371525921,1752337882030,-151.0,0.00017808,2]
[371525922,1752337882040,-397.650036,0.00018082,2]
[371525923,1752337882049,-587.85,0.00018356,2]
[371525924,1752337882059,-587.85,0.0001863,2]
[371525925,1752337882068,-397.650036,0.0001863,2]
[371525926,1752337882077,-151.0,0.0001863,2]
[371525927,1752337882087,-587.85,0.00018904,2]
[371525928,1752337882096,-587.85,0.00019178,2]
[371525929,1752337882106,-397.650036,0.00019178,2]
[371525930,1752337882115,-151.0,0.00019178,2]
[371525931,1752337882124,-587.85,0.00019452,2]
[371525932,1752337882133,-587.85,0.00019726,2]
[371525933,1752337882142,-151.0,0.00019726,2]
[371525934,1752337882151,-397.650036,0.00019831,2]
[371525935,1752337882161,-151.0,0.00019899,2]
[371525936,1752337882170,-151.0,0.00019899,2]
[371525937,1752337882179,-151.0,0.00019899,2]
[371525938,1752337882189,-151.0,0.00019899,2]
[371525939,1752337882198,-587.85,0.0002,2]
[371525940,1752337882207,-151.0,0.0002,2]
[371525941,1752337882217,-587.85,0.00020273,2]
[371525942,1752337882227,-397.650036,0.00020547,2]
[371525943,1752337882236,-587.85,0.00020547,2]
[371525944,1752337882245,-1491.14673876,0.00020821,2]
[371525945,1752337882255,-638.57,0.00020821,2]
[371525946,1752337882263,-1037.74,0.00020821,2]
[371525947,1752337882273,-502.37,0.00020821,2]
[371525948,1752337882287,-633.77,0.00020821,2]
[371525949,1752337882296,-504.46,0.00020821,2]
[371525950,1752337882306,-1078.9,0.00020821,2]
[371525951,1752337882315,-535.14,0.00020821,2]
[371525952,1752337882326,-99.80370375,0.00020821,2]
[371525953,1752337882338,-5167.81629625,0.00020821,2]
[371525954,1752337882347,-460.0,0.00020821,2]
[371525955,1752337882358,-460.0,0.00020821,2]
[371525956,1752337882368,-1776.53,0.00020821,2]
[371525957,1752337882377,-460.0,0.00020821,2]
[371525958,1752337882386,-476.19,0.00020821,2]
[371525959,1752337882395,-1202.71,0.00020821,2]
[371525960,1752337882404,-3134.5,0.00020821,2]
[371525961,1752337882414,-559.61,0.00020821,2]
[371525962,1752337882423,-460.0,0.00020821,2]
[371525963,1752337882432,-483.57,0.00020821,2]
[371525964,1752337882442,-773.0,0.00020877,2]
[371525965,1752337882451,-500.0,0.00020979,2]
[371525966,1752337882460,-500.0,0.00020979,2]
[371525967,1752337882469,-500.0,0.00020979,2]
[371525968,1752337882479,-500.0,0.00020979,2]
[371525969,1752337882488,-500.0,0.00020979,2]
[371525970,1752337882497,-500.0,0.00020979,2]
[371525971,1752337882506,-511.8062021,0.00020979,2]
[371525972,1752337882516,-500.0,0.00020979,2]
[371525973,1752337882526,-500.0,0.00020979,2]
[371525974,1752337882535,-500.0,0.00020979,2]
[371525975,1752337882544,-500.0,0.00020979,2]
[371525976,1752337882553,-500.0,0.00020979,2]
[371525977,1752337882563,-500.0,0.00020979,2]
[371525978,1752337882572,-500.0,0.00020979,2]
[371525979,1752337882581,-500.0,0.00020979,2]
[371525980,1752337882591,-500.0,0.00020979,2]
[371525981,1752337882600,-638.0285363,0.00020979,2]
[371525982,1752337882609,-500.0,0.00020979,2]
[371525983,1752337882620,-500.0,0.00020979,2]
[371525984,1752337882629,-158.0,0.00020979,2]
[371525985,1752337882639,-151.0,0.00020979,2]
[371525986,1752337882648,-152.0,0.00020979,2]
[371525987,1752337882658,-160.0,0.00020979,2]
[371525988,1752337882668,-2654.34677328,0.00021038,4]
[371525989,1752337882677,-773.0,0.00021052,2]
[371525990,1752337882686,-500.0,0.00021069,2]
[371525991,1752337882696,-500.0,0.00021069,2]
[371525992,1752337882706,-500.0,0.00021069,2]
[371525993,1752337882715,-500.0,0.00021069,2]
[371525994,1752337882725,-460.0,0.00021095,2]
[371525995,1752337882734,-460.0,0.00021095,2]
[371525996,1752337882743,-535.97,0.00021095,2]
[371525997,1752337882753,-460.0,0.00021095,2]
[371525998,1752337882762,-544.05,0.00021095,2]
[371525999,1752337882771,-460.0,0.00021095,2]
[371526000,1752337882781,-754.1,0.00021095,2]
[371526001,1752337882790,-460.0,0.00021095,2]
[371526002,1752337882800,-460.0,0.00021095,2]
[371526003,1752337882809,-874.82,0.00021095,2]
[371526004,1752337882819,-460.0,0.00021095,2]
[371526005,1752337882829,-934.28,0.00021095,2]
[371526006,1752337882839,-460.0,0.00021095,2]
[371526007,1752337882848,-504.26,0.00021095,2]
[371526008,1752337882858,-460.0,0.00021095,2]
[371526009,1752337882867,-460.0,0.00021095,2]
[371526010,1752337882877,-992.64,0.00021095,2]
[371526011,1752337882887,-289.846167,0.00021095,2]
[371526012,1752337882896,-460.0,0.00021095,2]
[371526013,1752337882909,-289.846167,0.00021095,2]
[371526014,1752337882921,-460.0,0.00021095,2]
[371526015,1752337882931,-1839.91,0.00021095,2]
[371526016,1752337882941,-927.9,0.00021095,2]
[371526017,1752337882951,-151.0,0.00021095,2]
[371526018,1752337882961,-526.46,0.00021095,2]
[371526019,1752337882970,-1650.17,0.00021095,2]
[371526020,1752337882980,-460.0,0.00021095,2]
[371526021,1752337882989,-1069.15,0.00021095,2]
[371526022,1752337882999,-460.0,0.00021095,2]
[371526023,1752337883009,-238.128338,0.00021095,2]
[371526024,1752337883018,-578.23,0.00021095,2]
[371526025,1752337883027,-3354.98,0.00021095,2]
[371526026,1752337883036,-460.0,0.00021095,2]
[371526027,1752337883046,-998.44,0.00021095,2]
[371526028,1752337883056,-2099.31,0.00021095,2]
[371526029,1752337883065,-4494.11,0.00021095,2]
[371526030,1752337883075,-427.26676303,0.00021095,2]
[371526031,1752337883092,-460.0,0.00016438,2]
[371526032,1752337883102,-32.73323697,0.00021095,2]
[371526033,1752337883111,-1003.4,0.00021095,2]
[371526034,1752337883121,-485.45,0.00021095,2]
[371526035,1752337883131,-515.64,0.00021095,2]
[371526036,1752337883140,-589.21385134,0.00021095,2]
[371526037,1752337883149,-527.530373,0.00021095,2]
[371526038,1752337883159,-527.530373,0.00021095,2]
[371526039,1752337883169,-460.0,0.00021095,2]
[371526040,1752337883179,-3383.5,0.00021095,2]
[371526041,1752337883189,-470.33,0.00021095,2]
[371526042,1752337883199,-253.510333,0.00021095,2]
[371526043,1752337883207,-151.0,0.00021095,2]
[371526044,1752337883217,-253.510333,0.00021095,2]
[371526045,1752337883226,-151.0,0.00021095,2]
[371526046,1752337883236,-1827.3,0.00021095,2]
[371526047,1752337883246,-804.37,0.00021095,2]
[371526048,1752337883257,-2119.51,0.00021095,2]
[371526049,1752337883268,-460.0,0.00021095,2]
[371526050,1752337883281,-460.0,0.00021095,2]
[371526051,1752337883291,-690.3,0.00021095,2]
[371526052,1752337883302,-460.0,0.00021095,2]
[371526053,1752337883311,-717.39,0.00021095,2]
[371526054,1752337883321,-834.1,0.00021095,2]
[371526055,1752337883332,-677.77,0.00021095,2]
[371526056,1752337883341,-460.0,0.00021095,2]
[371526057,1752337883353,-1548.29,0.00021095,2]
[371526058,1752337883362,-638.57,0.00021095,2]
[371526059,1752337883372,-1037.74,0.00021095,2]
[371526060,1752337883382,-502.37,0.00021095,2]
[371526061,1752337883391,-633.77,0.00021095,2]
[371526062,1752337883401,-504.46,0.00021095,2]
[371526063,1752337883411,-1078.9,0.00021095,2]
[371526064,1752337883422,-535.14,0.00021095,2]
[371526065,1752337883432,-5267.62,0.00021095,2]
[371526066,1752337883443,-460.0,0.00021095,2]
[371526067,1752337883452,-460.0,0.00021095,2]
[371526068,1752337883462,-1776.53,0.00021095,2]
[371526069,1752337883471,-460.0,0.00021095,2]
[371526070,1752337883481,-476.19,0.00021095,2]
[371526071,1752337883490,-1202.71,0.00021095,2]
[371526072,1752337883499,-3134.5,0.00021095,2]
[371526073,1752337883509,-559.61,0.00021095,2]
[371526074,1752337883519,-460.0,0.00021095,2]
[371526075,1752337883528,-483.57,0.00021095,2]
[371526076,1752337883538,-773.0,0.00021106,2]
[371526077,1752337883547,-828.17587675,0.00021118,2]
[371526078,1752337883557,-5000.0,0.00021184,2]
[371526079,1752337883566,-795.0,0.00021218,2]
[371526080,1752337883576,-168.0,0.0002126,2]
[371526081,1752337883585,-215.0738,0.00021268,2]
[371526082,1752337883594,-2654.34677328,0.00021279,5]
[371526083,1752337883604,-202.0,0.00021281,2]
[371526084,1752337883613,-167.0,0.00021328,2]
[371526085,1752337883622,-795.0,0.00021367,2]
[371526086,1752337883631,-524.31,0.00021369,2]
[371526087,1752337883641,-263.0,0.00021369,2]
[371526088,1752337883650,-535.97,0.00021369,2]
[371526089,1752337883660,-460.0,0.00021369,2]
[371526090,1752337883670,-544.05,0.00021369,2]
[371526091,1752337883680,-151.0,0.00021369,2]
[371526092,1752337883691,-460.0,0.00021369,2]
[371526093,1752337883701,-278.778831,0.00021369,2]
[371526094,1752337883711,-754.1,0.00021369,2]
[371526095,1752337883720,-151.0,0.00021369,2]
[371526096,1752337883729,-151.0,0.00021369,2]
[371526097,1752337883739,-151.0,0.00021369,2]
[371526098,1752337883748,-151.0,0.00021369,2]
[371526099,1752337883758,-460.0,0.00021369,2]
[371526100,1752337883768,-460.0,0.00021369,2]
[371526101,1752337883777,-874.82,0.00021369,2]
[371526102,1752337883787,-460.0,0.00021369,2]
[371526103,1752337883797,-934.28,0.00021369,2]
[371526104,1752337883806,-379.6031864,0.00021369,2]
[371526105,1752337883816,-504.26,0.00021369,2]
[371526106,1752337883825,-460.0,0.00021369,2]
[371526107,1752337883835,-460.0,0.00021369,2]
[371526108,1752337883844,-992.64,0.00021369,2]
[371526109,1752337883854,-460.0,0.00021369,2]
[371526110,1752337883866,-460.0,0.00021369,2]
[371526111,1752337883875,-1839.91,0.00021369,2]
[371526112,1752337883885,-927.9,0.00021369,2]
[371526113,1752337883894,-526.46,0.00021369,2]
[371526114,1752337883905,-1650.17,0.00021369,2]
[371526115,1752337883914,-460.0,0.00021369,2]
[371526116,1752337883924,-1069.15,0.00021369,2]
[371526117,1752337883934,-460.0,0.00021369,2]
[371526118,1752337883945,-578.23,0.00021369,2]
[371526119,1752337883955,-3354.98,0.00021369,2]
[371526120,1752337883965,-460.0,0.00021369,2]
[371526121,1752337883975,-998.44,0.00021369,2]
[371526122,1752337883985,-2099.31,0.00021369,2]
[371526123,1752337883995,-460.0,0.00021369,2]
[371526124,1752337884005,-4494.11,0.00021369,2]
[371526125,1752337884015,-1003.4,0.00021369,2]
[371526126,1752337884024,-485.45,0.00021369,2]
[371526127,1752337884034,-515.64,0.00021369,2]
[371526128,1752337884043,-460.0,0.00021369,2]
[371526129,1752337884053,-3383.5,0.00021369,2]
[371526130,1752337884062,-470.33,0.00021369,2]
[371526131,1752337884072,-1827.3,0.00021369,2]
[371526132,1752337884082,-804.37,0.00021369,2]
[371526133,1752337884092,-2119.51,0.00021369,2]
[371526134,1752337884102,-368.99,0.00021369,2]
[371526135,1752337884112,-460.0,0.00021369,2]
[371526136,1752337884122,-690.3,0.00021369,2]
[371526137,1752337884131,-460.0,0.00021369,2]
[371526138,1752337884141,-717.39,0.00021369,2]
[371526139,1752337884150,-834.1,0.00021369,2]
[371526140,1752337884160,-677.77,0.00021369,2]
[371526141,1752337884169,-460.0,0.00021369,2]
[371526142,1752337884178,-1548.29,0.00021369,2]
[371526143,1752337884188,-638.57,0.00021369,2]
[371526144,1752337884198,-1037.74,0.00021369,2]
[371526145,1752337884207,-502.37,0.00021369,2]
[371526146,1752337884216,-633.77,0.00021369,2]
[371526147,1752337884225,-504.46,0.00021369,2]
[371526148,1752337884235,-1078.9,0.00021369,2]
[371526149,1752337884246,-535.14,0.00021369,2]
[371526150,1752337884256,-5267.62,0.00021369,2]
[371526151,1752337884265,-460.0,0.00021369,2]
[371526152,1752337884275,-460.0,0.00021369,2]
[371526153,1752337884287,-1776.53,0.00021369,2]
[371526154,1752337884297,-460.0,0.00021369,2]
[371526155,1752337884307,-476.19,0.00021369,2]
[371526156,1752337884316,-1202.71,0.00021369,2]
[371526157,1752337884326,-3134.5,0.00021369,2]
[371526158,1752337884336,-559.61,0.00021369,2]
[371526159,1752337884346,-460.0,0.00021369,2]
[371526160,1752337884356,-483.57,0.00021369,2]
[371526161,1752337884365,-202.0,0.00021379,2]
[371526162,1752337884375,-202.0,0.00021387,2]
[371526163,1752337884384,-554.3,0.000214,2]
[371526164,1752337884394,-168.0,0.00021422,2]
[371526165,1752337884403,-168.0,0.00021463,2]
[371526166,1752337884413,-153.0,0.00021479,2]
[371526167,1752337884422,-576.333126,0.00021479,2]
[371526168,1752337884432,-177.9046599,0.00021479,2]
[371526169,1752337884443,-153.0,0.00021479,2]
[371526170,1752337884452,-159.6218677,0.00021479,2]
[371526171,1752337884462,-153.0,0.00021479,2]
[371526172,1752337884472,-159.6218677,0.00021479,2]
[371526173,1752337884482,-177.9046599,0.00021479,2]
[371526174,1752337884492,-153.0,0.00021479,2]
[371526175,1752337884502,-159.6218677,0.00021479,2]
[371526176,1752337884512,-153.0,0.00021479,2]
[371526177,1752337884523,-177.9046599,0.00021479,2]
[371526178,1752337884533,-177.9046599,0.00021479,2]
[371526179,1752337884543,-159.6218677,0.00021479,2]
[371526180,1752337884552,-159.6218677,0.00021479,2]
[371526181,1752337884563,-355.2761255,0.00021479,2]
[371526182,1752337884572,-153.0,0.00021479,2]
[371526183,1752337884582,-159.6218677,0.00021479,2]
[371526184,1752337884707,-159.6218677,0.00021479,2]
[371526185,1752337884718,-153.0,0.00021479,2]
[371526186,1752337884727,-159.6218677,0.00021479,2]
[371526187,1752337884737,-159.0920148,0.00021479,2]
[371526188,1752337884748,-153.0,0.00021479,2]
[371526189,1752337884757,-153.0,0.00021479,2]
[371526190,1752337884767,-153.0,0.00021479,2]
[371526191,1752337884777,-645.840653,0.00021519,4]
[371526192,1752337884787,-2654.34677328,0.00021521,5]
[371526193,1752337884797,-151.0,0.00021521,2]
[371526194,1752337884807,-305.267491,0.00021521,2]
[371526195,1752337884817,-305.267491,0.00021521,2]
[371526196,1752337884827,-1000.0,0.00021527,2]
[371526197,1752337884836,-1000.0,0.00021527,2]
[371526198,1752337884846,-1000.0,0.00021527,2]
[371526199,1752337884855,-500.0,0.00021527,2]
[371526200,1752337884865,-937.39951093,0.00021527,2]
[371526201,1752337884876,-1000.0,0.00021527,2]
[371526202,1752337884885,-1000.0,0.00021527,2]
[371526203,1752337884895,-1115.02980264,0.00021527,2]
[371526204,1752337884905,-562.357597,0.00021577,2]
[371526205,1752337884916,-2648.42648793,0.00021587,2]
[371526206,1752337884926,-501.82376539,0.00021617,2]
[371526207,1752337884937,-151.0,0.00021617,2]
[371526208,1752337884947,-151.0,0.00021617,2]
[371526209,1752337884956,-151.0,0.00021617,2]
[371526210,1752337884966,-405.719,0.00021639,2]
[371526211,1752337884976,-410.826,0.00021639,2]
[371526212,1752337884985,-647.0,0.00021639,2]
[371526213,1752337884995,-151.0,0.00021643,2]
[371526214,1752337885005,-151.0,0.00021643,2]
[371526215,1752337885014,-535.97,0.00021643,2]
[371526216,1752337885023,-460.0,0.00021643,2]
[371526217,1752337885034,-544.05,0.00021643,2]
[371526218,1752337885044,-460.0,0.00021643,2]
[371526219,1752337885054,-754.1,0.00021643,2]
[371526220,1752337885064,-460.0,0.00021643,2]
[371526221,1752337885074,-460.0,0.00021643,2]
[371526222,1752337885084,-874.82,0.00021643,2]
[371526223,1752337885094,-460.0,0.00021643,2]
[371526224,1752337885103,-934.28,0.00021643,2]
[371526225,1752337885113,-151.0,0.00021643,2]